[Event "WCCC G10 2019"]
[Site "Weifang"]
[Date "2019.08.25"]
[Round "5.1"]
[White "Li, Rachael"]
[Black "Feng, Eunice"]
[Result "1/2-1/2"]
[ECO "B76"]
[WhiteElo "1911"]
[BlackElo "1280"]
[Annotator "NA"]
[PlyCount "145"]
[EventDate "2019.08.21"]
[EventType "swiss"]
[EventCountry "CHN"]
[SourceTitle "playchess.com"]
[Source "ChessBase"]
[SourceQuality "1"]
[TimeControl "40/5400+30:1800+30"]

1. e4 {[%emt 0:00:00]} c5 {[%emt 0:00:00]} 2. Nc3 {[%emt 0:00:00]} ({Predecessor:} 2. Nf3 d6 3. d4 cxd4 4. Nxd4 Nf6 5. Nc3 g6 6. Be3 {1-0 (31) Lizak,J (2131)-Stochnialek,D (1439) Iwonicz 2016}) 2... d6 {[%emt 0:00:00]} 3. Nge2 {[%emt 0:00:00]} g6 {[%emt 0:00:12]} 4. d4 {[%emt 0:01:10]} cxd4 {[%emt 0:00:11]} 5. Nxd4 {[%emt 0:00:06]} Bg7 {[%emt 0:00:11]} 6. Be3 {[%emt 0:00:08]} Nf6 {[%emt 0:00:08]} 7. f3 {[%emt 0:00:08]} O-O {[%emt 0:00:12]} 8. Qd2 {[%emt 0:00:03]} Nc6 {[%emt 0:00:09]} 9. O-O-O {[%emt 0:00:07]} d5 {[%emt 0:01:00]} 10. Kb1 {[%emt 0:00:05]} Nxd4 {[%emt 0:05:41]} 11. e5 {[%emt 0:00:11]} Nd7 {[%emt 0:02:46]} 12. Bxd4 {[%emt 0:02:45] B76: Sicilian Dragon: Yugoslav Attack, 9 g4 and 9 0-0-0} Nxe5 {[%emt 0:05:49]} 13. Qe3 {[%emt 0:09:17]} Nc6 {[%emt 0:09:34]} 14. Bxg7 {[%emt 0:00:57]} Kxg7 {[%emt 0:00:10]} 15. Nxd5 {[%emt 0:11:29]} Be6 $146 {[%emt 0:06:53]} (15... Qa5 16. b4 Qd8 17. b5 Na5 18. Be2 Bd7 19. Rd4 Rc8 20. Rh4 h5 21. Nxe7 Re8 22. Qd4+ Kh7 23. Bd3 f5 24. Nxc8 Qxc8 25. Qxa7 Qc3 26. Qd4 {1-0 (26) Malinovsky,K (2445)-Stachowiak,K (2451) Czechia 2013}) 16. Qc3+ {[%emt 0:02:20]} f6 {[%emt 0:00:22]} 17. Bc4 {[%emt 0:00:22]} Bxd5 {[%emt 0:02:49]} 18. Bxd5 {[%emt 0:04:46]} Qc7 {[%emt 0:03:48]} 19. h4 {[%emt 0:08:58]} Rad8 {[%emt 0:08:20]} 20. h5 {[%emt 0:02:23]} Qd6 {[%emt 0:11:19]} 21. Qe3 {[%emt 0:06:57]} g5 {[%emt 0:02:00]} 22. c3 {[%emt 0:00:59]} Qf4 {[%emt 0:05:14]} 23. Qxf4 {[%emt 0:04:36]} gxf4 {[%emt 0:00:10]} 24. h6+ {[%emt 0:00:33]} Kh8 {[%emt 0:02:01]} 25. Kc2 {[%emt 0:02:01]} Rfe8 {[%emt 0:07:34]} 26. Rh4 {[%emt 0:11:06]} e5 {[%emt 0:00:28]} 27. b4 {[%emt 0:01:43]} Nd4+ $11 {[%emt 0:01:14]} 28. cxd4 {[%emt 0:01:07]} Rxd5 {[%emt 0:00:05]} 29. Rh5 {[%emt 0:02:46]} Kg8 {[%emt 0:04:51]} 30. Kb3 {[%emt 0:04:04]} Red8 {[%emt 0:01:48]} 31. g3 {[%emt 0:05:11]} Rxd4 {[%emt 0:04:01]} 32. Rg1 {[%emt 0:02:08]} Kh8 {[%emt 0:04:54]} 33. Rf5 {[%emt 0:04:58]} Rd3+ {[%emt 0:01:35]} 34. Kb2 {[%emt 0:02:16]} Rxf3 {[%emt 0:00:37]} 35. gxf4 {[%emt 0:01:12]} Rxf4 {[%emt 0:00:17]} 36. Rxf4 {[%emt 0:00:28]} exf4 {[%emt 0:00:06]} 37. Rf1 {[%emt 0:00:12]} Kg8 {[%emt 0:00:29]} 38. Rxf4 {[%emt 0:00:19]} Kf7 {[%emt 0:00:09]} 39. Rg4 {[%emt 0:00:25]} Ke6 {[%emt 0:00:56]} 40. Re4+ {[%emt 0:00:09]} Kf7 {[%emt 0:00:23]} 41. Rg4 {[%emt 0:30:10]} Rd7 {[%emt 0:30:23]} 42. Kc3 {[%emt 0:01:03]} f5 {[%emt 0:00:07]} 43. Rg7+ {[%emt 0:00:53]} Ke6 {[%emt 0:00:08]} 44. Rg8 {[%emt 0:00:48]} f4 {[%emt 0:02:09]} 45. Rf8 {[%emt 0:00:21]} Rf7 {[%emt 0:00:29]} 46. Re8+ {[%emt 0:00:15]} Kf6 {[%emt 0:03:26]} 47. Kd2 {[%emt 0:01:45]} Kg6 {[%emt 0:00:43]} 48. Re6+ {[%emt 0:00:09]} Kf5 {[%emt 0:00:19]} 49. Re8 {[%emt 0:00:07]} f3 {[%emt 0:00:51]} 50. Ke3 {[%emt 0:00:13]} Kg6 {[%emt 0:00:16]} 51. Rg8+ {[%emt 0:00:57]} Kxh6 {[%emt 0:00:09]} 52. Kf2 {[%emt 0:00:06]} Kh5 {[%emt 0:00:24]} 53. b5 {[%emt 0:00:21]} b6 {[%emt 0:01:46]} 54. a4 {[%emt 0:00:10]} Kh4 {[%emt 0:00:13]} 55. Rg1 {[%emt 0:00:42]} h5 {[%emt 0:00:12]} 56. Rg6 {[%emt 0:00:07]} Rf4 {[%emt 0:03:26]} 57. a5 {[%emt 0:02:10]} bxa5 {[%emt 0:03:05]} 58. Ra6 {[%emt 0:00:13]} Rf7 {[%emt 0:00:15]} 59. Rxa5 {[%emt 0:00:10]} Kg4 {[%emt 0:01:00]} 60. Ra4+ {[%emt 0:02:24]} Kg5 {[%emt 0:00:13]} 61. Ra5 {[%emt 0:01:19]} Kf4 {[%emt 0:00:48]} 62. Ra4+ {[%emt 0:00:06]} Ke5 {[%emt 0:00:16]} 63. Ra6 {[%emt 0:00:44]} Kf4 {[%emt 0:01:26]} 64. b6 {[%emt 0:01:00]} axb6 {[%emt 0:00:04]} 65. Rxb6 {[%emt 0:00:06]} Rf5 {[%emt 0:00:35]} 66. Rh6 {[%emt 0:01:16]} Kg4 {[%emt 0:00:29]} 67. Rg6+ {[%emt 0:00:19]} Kh4 {[%emt 0:00:35]} 68. Rg3 {[%emt 0:00:31]} Rf4 {[%emt 0:00:15]} 69. Rxf3 {[%emt 0:00:21]} Rg4 {[%emt 0:00:27]} 70. Ra3 {[%emt 0:00:09]} Rg6 {[%emt 0:01:09]} 71. Rb3 {[%emt 0:00:11]} Rg4 {[%emt 0:00:31]} 72. Ra3 {[%emt 0:00:08]} Kg5 {[%emt 0:00:38]} 73. Rg3 {[%emt 0:00:10]} 1/2-1/2

[Event "WCCC G10 2019"]
[Site "Weifang"]
[Date "2019.08.25"]
[Round "5.2"]
[White "Nurgaliyeva, Zarina"]
[Black "Lee, Alice"]
[Result "1/2-1/2"]
[ECO "B40"]
[WhiteElo "1474"]
[BlackElo "1822"]
[Annotator "NA"]
[PlyCount "71"]
[EventDate "2019.08.21"]
[EventType "swiss"]
[EventCountry "CHN"]
[SourceTitle "playchess.com"]
[Source "ChessBase"]
[SourceQuality "1"]
[TimeControl "40/5400+30:1800+30"]

1. e4 {[%emt 0:00:00]} c5 {[%emt 0:00:00]} 2. Nf3 {[%emt 0:00:00]} e6 {[%emt 0:00:00]} 3. g3 {[%emt 0:00:00]} d5 {[%emt 0:00:03]} 4. exd5 {[%emt 0:00:00]} exd5 {[%emt 0:00:13]} 5. d4 {[%emt 0:00:00]} Nc6 {[%emt 0:00:34]} 6. Bg2 {[%emt 0:00:00]} Bg4 {[%emt 0:00:49]} 7. O-O {[%emt 0:00:09]} Bxf3 {[%emt 0:02:05]} 8. Qxf3 {[%emt 0:00:11]} Nxd4 {[%emt 0:01:13]} 9. Qd3 {[%emt 0:00:27]} Nf6 {[%emt 0:00:50]} 10. Bg5 {[%emt 0:01:52]} Be7 {[%emt 0:01:07]} 11. c3 {[%emt 0:01:38]} Nc6 {[%emt 0:01:33]} 12. Bxf6 {[%emt 0:00:49]} Bxf6 {[%emt 0:00:33]} 13. Qxd5 {[%emt 0:01:19]} Qxd5 {[%emt 0:02:27]} 14. Bxd5 {[%emt 0:01:04]} Ne7 {[%emt 0:01:42]} 15. Bg2 {[%emt 0:05:59]} O-O-O $11 {[%emt 0:03:16]} 16. Na3 {[%emt 0:01:04]} Ng6 {[%emt 0:03:35]} 17. f4 {[%emt 0:06:06]} Rhe8 {[%emt 0:05:52]} 18. Bf3 {[%emt 0:02:57]} a6 {[%emt 0:03:41]} 19. Nc4 {[%emt 0:04:55]} Kc7 {[%emt 0:04:53]} 20. a4 {[%emt 0:00:25]} b6 {[%emt 0:03:36]} 21. Rfd1 {[%emt 0:11:15]} Ne7 {[%emt 0:04:20]} 22. Ne3 {[%emt 0:08:06]} h6 {[%emt 0:04:49]} 23. Rac1 {[%emt 0:04:08]} b5 {[%emt 0:07:07]} 24. axb5 {[%emt 0:01:42]} axb5 {[%emt 0:00:36]} 25. Ra1 {[%emt 0:02:39]} Kb6 {[%emt 0:02:42]} 26. Kf2 {[%emt 0:03:00]} c4 {[%emt 0:03:57]} 27. Nc2 {[%emt 0:01:46]} Nc6 {[%emt 0:07:18]} 28. Bxc6 {[%emt 0:02:04]} Kxc6 {[%emt 0:00:44]} 29. Nb4+ {[%emt 0:00:24]} Kb7 {[%emt 0:03:44]} 30. Nd5 {[%emt 0:01:54]} Be7 {[%emt 0:03:06]} 31. Ra5 {[%emt 0:15:20]} Bc5+ {[%emt 0:01:53]} 32. Kf3 {[%emt 0:00:52]} Kc6 {[%emt 0:14:31]} 33. Ra6+ {[%emt 0:00:21]} Kb7 {[%emt 0:00:06]} 34. Ra5 {[%emt 0:00:04]} Kc6 {[%emt 0:12:40]} 35. Ra6+ {[%emt 0:00:06]} Kb7 {[%emt 0:00:05]} 36. Ra5 {[%emt 0:00:29]} 1/2-1/2

[Event "WCCC G10 2019"]
[Site "Weifang"]
[Date "2019.08.25"]
[Round "5.3"]
[White "Chen, Yining"]
[Black "Liao, Yingzhu"]
[Result "1-0"]
[ECO "D85"]
[WhiteElo "1744"]
[BlackElo "1393"]
[Annotator "NA"]
[PlyCount "119"]
[EventDate "2019.08.21"]
[EventType "swiss"]
[EventCountry "CHN"]
[SourceTitle "playchess.com"]
[Source "ChessBase"]
[SourceQuality "1"]
[TimeControl "40/5400+30:1800+30"]

1. d4 {[%emt 0:00:00]} Nf6 {[%emt 0:00:00]} 2. c4 {[%emt 0:00:04]} g6 {[%emt 0:00:00]} 3. Nc3 {[%emt 0:00:16]} d5 {[%emt 0:00:12]} 4. cxd5 {[%emt 0:00:43]} Nxd5 {[%emt 0:00:28]} 5. e4 {[%emt 0:00:45]} Nxc3 {[%emt 0:01:21]} 6. bxc3 {[%emt 0:00:21]} Bg7 {[%emt 0:00:05]} 7. Be3 {[%emt 0:00:44]} O-O {[%emt 0:01:50]} 8. Nf3 {[%emt 0:01:46]} c5 {[%emt 0:01:52]} 9. Qd2 {[%emt 0:00:37]} b6 {[%emt 0:03:20]} 10. Rc1 {[%emt 0:03:55]} cxd4 {[%emt 0:11:42]} 11. cxd4 {[%emt 0:00:17]} Bb7 {[%emt 0:00:18]} 12. Bd3 {[%emt 0:01:44]} e6 {[%emt 0:03:42]} 13. Ne5 {[%emt 0:13:39]} f6 {[%emt 0:11:31]} 14. Nf3 {[%emt 0:06:23]} Kh8 {[%emt 0:02:40]} 15. O-O {[%emt 0:03:35]} Nc6 {[%emt 0:00:41]} 16. Rfd1 {[%emt 0:04:57]} Qe7 {[%emt 0:04:21]} 17. Bb5 {[%emt 0:02:45]} Nb4 {[%emt 0:03:51]} 18. a3 {[%emt 0:04:04]} Na6 {[%emt 0:01:23]} 19. Qd3 {[%emt 0:00:53]} Nc7 {[%emt 0:01:22]} 20. Bc6 {[%emt 0:00:25]} Ba6 {[%emt 0:01:06]} 21. Qd2 {[%emt 0:02:56]} Rad8 {[%emt 0:00:45]} 22. d5 {[%emt 0:03:48]} exd5 {[%emt 0:04:15]} 23. exd5 {[%emt 0:00:34]} Qxa3 {[%emt 0:08:14]} 24. Ra1 {[%emt 0:01:26]} Qe7 {[%emt 0:01:13]} 25. d6 {[%emt 0:01:42]} Qe6 {[%emt 0:01:55]} 26. Qb4 {[%emt 0:02:00]} Be2 {[%emt 0:00:38]} 27. Rd2 {[%emt 0:16:52]} Bxf3 {[%emt 0:02:11]} 28. Bxf3 {[%emt 0:00:28]} Ne8 {[%emt 0:01:48]} 29. Rad1 {[%emt 0:01:52]} f5 {[%emt 0:03:46]} 30. Bf4 {[%emt 0:01:52]} Nf6 {[%emt 0:01:29]} 31. Re2 {[%emt 0:01:35]} Qc8 {[%emt 0:08:19]} 32. Rc1 {[%emt 0:02:39]} Qa6 {[%emt 0:00:09]} 33. Qb3 {[%emt 0:02:13]} Ne4 {[%emt 0:03:00]} 34. Ra2 {[%emt 0:00:43]} Qb7 {[%emt 0:01:27]} 35. Rc7 {[%emt 0:00:59]} Qb8 {[%emt 0:00:37]} 36. Raxa7 {[%emt 0:01:05]} Rg8 {[%emt 0:00:35]} 37. Bxe4 {[%emt 0:00:39]} fxe4 {[%emt 0:00:17]} 38. Bh6 {[%emt 0:02:51]} Qxa7 {[%emt 0:01:06]} 39. Rxa7 {[%emt 0:00:24]} Bxh6 {[%emt 0:00:09]} 40. Qxb6 {[%emt 0:00:55]} Rc8 {[%emt 0:00:29]} 41. g3 {[%emt 0:30:26]} e3 {[%emt 0:30:21]} 42. fxe3 {[%emt 0:00:22]} Rb8 {[%emt 0:00:44]} 43. Qd4+ {[%emt 0:00:58]} Bg7 {[%emt 0:00:07]} 44. Qd3 {[%emt 0:00:14]} Rgc8 {[%emt 0:00:09]} 45. d7 {[%emt 0:00:36]} Rd8 {[%emt 0:01:02]} 46. Rc7 {[%emt 0:00:33]} Ra8 {[%emt 0:00:28]} 47. e4 {[%emt 0:00:41]} Be5 {[%emt 0:01:04]} 48. Rc5 {[%emt 0:00:25]} Bb2 {[%emt 0:00:43]} 49. e5 {[%emt 0:00:34]} Kg7 {[%emt 0:00:25]} 50. e6 {[%emt 0:00:14]} Bf6 {[%emt 0:00:27]} 51. Qd6 {[%emt 0:00:49]} Rdb8 {[%emt 0:01:52]} 52. e7 {[%emt 0:01:33]} Rb1+ {[%emt 0:00:15]} 53. Kg2 {[%emt 0:00:11]} Re1 {[%emt 0:00:16]} 54. e8=Q {[%emt 0:00:53]} Rexe8 {[%emt 0:00:12]} 55. dxe8=Q {[%emt 0:00:08]} Rxe8 {[%emt 0:00:03]} 56. Rc7+ {[%emt 0:00:10]} Re7 {[%emt 0:00:26]} 57. Rxe7+ {[%emt 0:00:04]} Bxe7 {[%emt 0:00:16]} 58. Qxe7+ {[%emt 0:00:03]} Kh6 {[%emt 0:00:06]} 59. g4 {[%emt 0:00:18]} g5 {[%emt 0:00:16]} 60. Qf6# {[%emt 0:00:01]} 1-0

[Event "WCCC G10 2019"]
[Site "Weifang"]
[Date "2019.08.25"]
[Round "5.4"]
[White "Mai, Hieu Linh"]
[Black "Mou, Iris"]
[Result "1/2-1/2"]
[ECO "C03"]
[WhiteElo "1344"]
[BlackElo "1669"]
[Annotator "NA"]
[PlyCount "108"]
[EventDate "2019.08.21"]
[EventType "swiss"]
[EventCountry "CHN"]
[SourceTitle "playchess.com"]
[Source "ChessBase"]
[SourceQuality "1"]
[TimeControl "40/5400+30:1800+30"]

1. e4 {[%emt 0:00:00]} e6 {[%emt 0:00:00]} 2. d4 {[%emt 0:00:14]} d5 {[%emt 0:00:00]} 3. Nd2 {[%emt 0:00:46]} h6 {[%emt 0:00:00]} 4. e5 {[%emt 0:01:47]} c5 {[%emt 0:00:34]} 5. c3 {[%emt 0:00:36]} Nc6 {[%emt 0:00:49]} 6. Ndf3 {[%emt 0:01:48]} Qb6 {[%emt 0:01:46]} 7. Bd3 {[%emt 0:02:44]} Bd7 {[%emt 0:01:23]} 8. Ne2 {[%emt 0:01:37]} cxd4 {[%emt 0:03:32]} 9. cxd4 {[%emt 0:01:07]} Nb4 {[%emt 0:01:41]} 10. Bb1 {[%emt 0:07:10]} Bb5 {[%emt 0:03:14]} 11. a3 {[%emt 0:01:06]} Bxe2 {[%emt 0:02:35]} 12. Qxe2 {[%emt 0:00:46]} Nc6 {[%emt 0:00:19]} 13. Be3 {[%emt 0:03:24]} Na5 {[%emt 0:03:04]} 14. Bd3 {[%emt 0:03:14]} a6 {[%emt 0:03:47]} 15. Rc1 {[%emt 0:02:40]} Ne7 {[%emt 0:07:24]} 16. O-O {[%emt 0:01:31]} Nf5 {[%emt 0:04:38]} 17. b4 {[%emt 0:02:35]} Nc6 {[%emt 0:02:35]} 18. Bxf5 {[%emt 0:00:22]} exf5 {[%emt 0:00:10]} 19. Qd3 {[%emt 0:02:16]} Ne7 {[%emt 0:03:18]} 20. Rc3 {[%emt 0:05:12]} Qe6 {[%emt 0:09:13]} 21. Rfc1 {[%emt 0:10:49]} Nc8 {[%emt 0:11:27]} 22. Rc7 {[%emt 0:06:48]} Nb6 {[%emt 0:05:40]} 23. Nd2 {[%emt 0:02:29]} Rb8 {[%emt 0:07:41]} 24. Qb3 {[%emt 0:08:58]} Na8 {[%emt 0:04:35]} 25. R7c3 {[%emt 0:04:04]} Be7 {[%emt 0:03:38]} 26. Qc2 {[%emt 0:05:51]} O-O {[%emt 0:01:23]} 27. Nb3 {[%emt 0:02:34]} Nb6 {[%emt 0:02:43]} 28. Na5 {[%emt 0:01:38]} Rfc8 {[%emt 0:01:45]} 29. Qb3 {[%emt 0:04:01]} Qd7 {[%emt 0:02:10]} 30. h3 {[%emt 0:01:12]} Rxc3 {[%emt 0:01:19]} 31. Rxc3 {[%emt 0:00:25]} Na4 {[%emt 0:01:23]} 32. Rc1 {[%emt 0:01:23]} Nb6 {[%emt 0:04:26]} 33. Qd3 {[%emt 0:02:20]} Rc8 {[%emt 0:02:06]} 34. Qf1 {[%emt 0:00:52]} Na4 {[%emt 0:02:17]} 35. Rxc8+ {[%emt 0:00:59]} Qxc8 {[%emt 0:00:08]} 36. Qc1 {[%emt 0:00:11]} Qd7 {[%emt 0:01:19]} 37. Qc2 {[%emt 0:00:46]} Bd8 {[%emt 0:01:01]} 38. Nxb7 {[%emt 0:00:58]} Qxb7 {[%emt 0:00:53]} 39. Qxa4 {[%emt 0:00:10]} Qb5 {[%emt 0:02:05]} 40. Qxb5 {[%emt 0:00:29]} axb5 {[%emt 0:00:07]} 41. Kf1 {[%emt 0:30:15]} g5 {[%emt 0:03:33]} 42. Ke2 {[%emt 0:00:00]} f4 {[%emt 0:02:17]} 43. Bc1 {[%emt 0:00:00]} Bb6 {[%emt 0:02:30]} 44. Bb2 {[%emt 0:00:00]} Kf8 {[%emt 0:01:25]} 45. Kd3 {[%emt 0:00:00]} Ke7 {[%emt 0:00:21]} 46. Kc2 {[%emt 0:00:00]} Kd7 {[%emt 0:00:33]} 47. Kb3 {[%emt 0:00:00]} Kc6 {[%emt 0:00:44]} 48. a4 {[%emt 0:00:00]} Ba7 {[%emt 0:02:41]} 49. a5 {[%emt 0:00:00]} Kd7 {[%emt 0:00:59]} 50. g4 {[%emt 0:00:00]} Ke7 {[%emt 0:02:25]} 51. Kc2 {[%emt 0:00:00]} Kf8 {[%emt 0:00:37]} 52. Kd3 {[%emt 0:00:00]} Kg7 {[%emt 0:00:26]} 53. Bc1 {[%emt 0:00:00]} Kg6 {[%emt 0:00:22]} 54. h4 {[%emt 0:00:00]} Kg7 {[%emt 0:04:00] Ke4} 1/2-1/2

[Event "WCCC G10 2019"]
[Site "Weifang"]
[Date "2019.08.25"]
[Round "5.5"]
[White "Yuan, Rui"]
[Black "Shukhman, Anna"]
[Result "1/2-1/2"]
[ECO "D90"]
[WhiteElo "1008"]
[BlackElo "1806"]
[Annotator "NA"]
[PlyCount "120"]
[EventDate "2019.08.21"]
[EventType "swiss"]
[EventCountry "CHN"]
[SourceTitle "playchess.com"]
[Source "ChessBase"]
[SourceQuality "1"]
[TimeControl "40/5400+30:1800+30"]

1. d4 {[%emt 0:00:00]} Nf6 {[%emt 0:00:00]} 2. Nf3 {[%emt 0:00:00]} c5 {[%emt 0:00:00]} 3. c3 {[%emt 0:00:00]} cxd4 {[%emt 0:00:03]} 4. cxd4 {[%emt 0:00:25]} g6 {[%emt 0:00:22]} 5. Nc3 {[%emt 0:01:08]} d5 {[%emt 0:00:05]} 6. Bf4 {[%emt 0:01:29]} Bg7 {[%emt 0:00:17]} 7. e3 {[%emt 0:00:41]} O-O {[%emt 0:00:38]} 8. Bd3 {[%emt 0:00:27]} Nc6 {[%emt 0:00:30]} 9. h3 {[%emt 0:01:26]} Nb4 {[%emt 0:04:07]} 10. Bb1 {[%emt 0:01:22]} b5 {[%emt 0:08:07]} (10... e6 $14) 11. O-O $14 {[%emt 0:04:58]} a5 {[%emt 0:03:49]} 12. a3 {[%emt 0:01:15]} Nc6 {[%emt 0:00:17]} 13. Ne5 {[%emt 0:03:51]} Qb6 {[%emt 0:03:18]} 14. Qb3 {[%emt 0:05:55]} Ba6 {[%emt 0:10:28]} 15. Na4 {[%emt 0:06:24]} Nxd4 {[%emt 0:00:52]} 16. Nxb6 {[%emt 0:02:05]} Nxb3 {[%emt 0:00:09]} 17. Nxa8 {[%emt 0:00:08]} Rxa8 {[%emt 0:04:43]} 18. Ra2 {[%emt 0:00:47]} Rc8 {[%emt 0:01:12]} 19. Bd3 {[%emt 0:03:34]} a4 {[%emt 0:00:21]} 20. f3 {[%emt 0:02:22]} Nh5 {[%emt 0:01:24]} 21. Rd1 {[%emt 0:06:07]} Nxf4 {[%emt 0:03:52]} 22. exf4 {[%emt 0:00:12]} Bxe5 {[%emt 0:10:13]} 23. fxe5 {[%emt 0:00:57]} Rc1 {[%emt 0:00:36]} 24. Be2 {[%emt 0:01:34]} Rc2 {[%emt 0:04:24]} 25. Bd3 {[%emt 0:02:47]} Rc1 {[%emt 0:00:07]} 26. Be2 {[%emt 0:01:12]} b4 {[%emt 0:01:33]} 27. Rxc1 {[%emt 0:13:35]} Nxc1 {[%emt 0:00:12]} 28. Bxa6 {[%emt 0:00:10]} Nxa2 {[%emt 0:00:05]} 29. axb4 {[%emt 0:00:17]} Nxb4 {[%emt 0:00:11]} 30. Bb5 {[%emt 0:00:12]} e6 {[%emt 0:00:54]} 31. Kf2 {[%emt 0:00:44]} Kf8 {[%emt 0:02:49]} 32. Ke2 {[%emt 0:00:25]} a3 {[%emt 0:01:35]} 33. bxa3 {[%emt 0:00:21]} Nc2 {[%emt 0:00:06]} 34. a4 {[%emt 0:00:19]} Nd4+ {[%emt 0:00:05]} 35. Kd3 {[%emt 0:00:11]} Nxb5 {[%emt 0:00:04]} 36. axb5 {[%emt 0:00:08]} Ke7 {[%emt 0:00:02]} 37. Kd4 {[%emt 0:00:34]} Kd7 {[%emt 0:00:06]} 38. Kc5 {[%emt 0:00:58]} g5 {[%emt 0:02:55]} 39. Kd4 {[%emt 0:01:51]} Kc7 {[%emt 0:00:13]} 40. Kc5 {[%emt 0:00:18]} h5 {[%emt 0:01:35]} 41. g3 {[%emt 0:32:08]} h4 {[%emt 0:31:55]} 42. gxh4 {[%emt 0:01:18]} gxh4 {[%emt 0:01:29]} 43. f4 {[%emt 0:00:15]} Kb7 {[%emt 0:00:09]} 44. b6 {[%emt 0:00:30]} Kb8 {[%emt 0:00:21]} 45. Kd4 {[%emt 0:01:08]} Kc8 {[%emt 0:00:18]} 46. Kc5 {[%emt 0:01:32]} Kb7 {[%emt 0:02:30]} 47. Kb5 {[%emt 0:01:01]} d4 {[%emt 0:00:09]} 48. Kc4 {[%emt 0:00:15]} Kxb6 {[%emt 0:00:05]} 49. Kxd4 {[%emt 0:00:09]} Kb5 {[%emt 0:00:04]} 50. Kd3 {[%emt 0:01:13]} Kc5 {[%emt 0:00:45]} 51. Kc3 {[%emt 0:00:07]} Kb5 {[%emt 0:00:41]} 52. Kb3 {[%emt 0:00:14]} Kb6 {[%emt 0:00:42]} 53. Kb4 {[%emt 0:00:05]} Kc6 {[%emt 0:00:12]} 54. Kc4 {[%emt 0:00:08]} Kd7 {[%emt 0:01:03]} 55. Kc5 {[%emt 0:00:13]} Kc7 {[%emt 0:00:05]} 56. Kb5 {[%emt 0:00:11]} Kb7 {[%emt 0:00:53]} 57. Kc5 {[%emt 0:00:05]} Kc7 {[%emt 0:00:40]} 58. Kb5 {[%emt 0:00:06]} Kb7 {[%emt 0:00:31]} 59. Kc5 {[%emt 0:00:07]} Kc7 {[%emt 0:00:05]} 60. Kb5 {[%emt 0:00:06]} Kb7 {[%emt 0:00:19]} 1/2-1/2

[Event "WCCC G10 2019"]
[Site "Weifang"]
[Date "2019.08.25"]
[Round "5.6"]
[White "Kirtadze, Anastasia"]
[Black "Rouda Essa, Alserkal"]
[Result "1-0"]
[ECO "A68"]
[WhiteElo "1532"]
[BlackElo "1601"]
[Annotator "NA"]
[PlyCount "151"]
[EventDate "2019.08.21"]
[EventType "swiss"]
[EventCountry "CHN"]
[SourceTitle "playchess.com"]
[Source "ChessBase"]
[SourceQuality "1"]
[TimeControl "40/5400+30:1800+30"]

1. d4 {[%emt 0:00:00]} Nf6 {[%emt 0:00:00]} 2. c4 {[%emt 0:00:00]} g6 {[%emt 0:00:00]} 3. Nc3 {[%emt 0:00:00]} Bg7 {[%emt 0:00:00]} 4. e4 {[%emt 0:00:29]} d6 {[%emt 0:00:00]} 5. f4 {[%emt 0:00:44]} O-O {[%emt 0:00:07]} 6. Nf3 {[%emt 0:00:24]} c5 {[%emt 0:00:41]} 7. d5 {[%emt 0:00:32]} e6 {[%emt 0:00:09]} 8. Bd3 {[%emt 0:01:47]} exd5 {[%emt 0:00:28]} 9. cxd5 {[%emt 0:00:32]} b5 {[%emt 0:01:49]} 10. O-O {[%emt 0:04:36]} c4 {[%emt 0:12:52]} 11. Bc2 {[%emt 0:02:12]} Re8 {[%emt 0:04:53]} 12. a3 {[%emt 0:07:48]} a5 {[%emt 0:27:40]} 13. Re1 {[%emt 0:32:18]} Ba6 {[%emt 0:08:37]} 14. e5 {[%emt 0:14:54]} dxe5 {[%emt 0:16:58]} 15. fxe5 {[%emt 0:00:18]} Ng4 {[%emt 0:00:55]} 16. Qd4 {[%emt 0:00:30]} Nxe5 {[%emt 0:00:56]} 17. Nxe5 {[%emt 0:00:47]} Nc6 {[%emt 0:00:27]} 18. Qf2 {[%emt 0:05:55]} Nxe5 {[%emt 0:00:46]} 19. h3 {[%emt 0:00:59]} f5 {[%emt 0:04:21]} 20. Be3 {[%emt 0:02:20]} Rb8 {[%emt 0:11:21]} 21. Rad1 {[%emt 0:03:09]} Qd7 {[%emt 0:00:54]} 22. Kh1 {[%emt 0:02:34]} Bb7 {[%emt 0:01:28]} 23. Bb6 {[%emt 0:04:44]} a4 {[%emt 0:00:19]} 24. Be3 {[%emt 0:01:40]} Ba8 {[%emt 0:00:19]} 25. Bf4 {[%emt 0:00:55]} Rbd8 {[%emt 0:01:43]} 26. Bg5 {[%emt 0:00:15]} Rb8 {[%emt 0:00:46]} 27. Bf4 {[%emt 0:00:47]} Rbd8 {[%emt 0:01:01]} 28. Qc5 {[%emt 0:01:05]} Rb8 {[%emt 0:01:42]} 29. Qf2 {[%emt 0:01:13]} Qf7 {[%emt 0:01:28]} 30. Qg3 {[%emt 0:00:44]} Qf6 {[%emt 0:00:13]} 31. Re3 {[%emt 0:01:07]} Rb7 {[%emt 0:01:14]} 32. Rde1 {[%emt 0:00:10]} Rbe7 {[%emt 0:00:08]} 33. Bg5 {[%emt 0:00:38]} Qf7 {[%emt 0:00:07]} 34. Bxe7 {[%emt 0:00:46]} Qxe7 {[%emt 0:00:22]} 35. Rd1 {[%emt 0:02:26]} Qf8 {[%emt 0:01:08]} 36. Ree1 {[%emt 0:01:12]} Qc5 {[%emt 0:00:55]} 37. Qe3 {[%emt 0:00:59]} Qc8 {[%emt 0:00:18]} 38. Qf2 {[%emt 0:00:23]} Qd7 {[%emt 0:00:18]} 39. Qc5 {[%emt 0:01:07]} Rb8 {[%emt 0:00:15]} 40. Qf2 {[%emt 0:00:56]} Qd6 {[%emt 0:00:45]} 41. Na2 {[%emt 0:30:34]} Rb7 {[%emt 0:02:16]} 42. Nb4 {[%emt 0:00:00]} Rc7 {[%emt 0:01:07]} 43. Na2 {[%emt 0:00:00]} Rc5 {[%emt 0:01:02]} 44. Nb4 {[%emt 0:00:00]} Rc7 {[%emt 0:00:12]} 45. Qf4 {[%emt 0:00:00]} Rd7 {[%emt 0:00:32]} 46. Re2 {[%emt 0:00:00]} Rd8 {[%emt 0:00:46]} 47. Rde1 {[%emt 0:00:00]} Re8 {[%emt 0:04:21]} 48. Qf2 {[%emt 0:00:00]} Rc8 {[%emt 0:00:29]} 49. Rd1 {[%emt 0:00:00]} Rc7 {[%emt 0:00:22]} 50. Ree1 {[%emt 0:00:00]} Rc8 {[%emt 0:00:55]} 51. Na2 {[%emt 0:00:00]} Rd8 {[%emt 0:00:25]} 52. Qd2 {[%emt 0:00:00]} Rc8 {[%emt 0:00:22]} 53. Qb4 {[%emt 0:00:00]} Qxb4 {[%emt 0:04:16]} 54. Nxb4 {[%emt 0:00:00]} Kf7 {[%emt 0:00:44]} 55. Re2 {[%emt 0:00:00]} Ke7 {[%emt 0:00:46]} 56. d6+ {[%emt 0:00:00]} Kd7 {[%emt 0:00:22]} 57. Nd5 {[%emt 0:00:00]} Rc6 {[%emt 0:03:19]} 58. Nc7 {[%emt 0:00:00]} Bb7 {[%emt 0:00:14]} 59. Nxb5 {[%emt 0:00:00]} Rb6 {[%emt 0:00:34]} 60. Bxa4 {[%emt 0:00:00]} Bc6 {[%emt 0:00:41]} 61. Nc3 {[%emt 0:00:00]} Bxa4 {[%emt 0:01:28]} 62. Nxa4 {[%emt 0:00:00]} Rc6 {[%emt 0:00:35]} 63. Rd5 {[%emt 0:00:00]} Rxd6 {[%emt 0:03:13]} 64. Rexe5 {[%emt 0:00:00]} Bxe5 {[%emt 0:00:07]} 65. Rxe5 {[%emt 0:00:00]} Rd4 {[%emt 0:00:47]} 66. Re2 {[%emt 0:00:00]} Kd6 {[%emt 0:00:28]} 67. Kg1 {[%emt 0:00:00]} f4 {[%emt 0:01:11]} 68. Kf2 {[%emt 0:00:00]} g5 {[%emt 0:00:07]} 69. Nc3 {[%emt 0:00:03]} h6 {[%emt 0:00:16]} 70. Nb5+ {[%emt 0:00:04]} Kd5 {[%emt 0:00:21]} 71. Nxd4 {[%emt 0:00:04]} Kxd4 {[%emt 0:00:05]} 72. Rd2+ {[%emt 0:00:02]} Kc5 {[%emt 0:00:18]} 73. Kf3 {[%emt 0:00:04]} h5 {[%emt 0:00:05]} 74. Ke4 {[%emt 0:00:03]} Kc6 {[%emt 0:00:06]} 75. Kf5 {[%emt 0:00:08]} Kc5 {[%emt 0:00:26]} 76. Kxg5 {[%emt 0:00:11] Kd5} 1-0